bitfinex/quotes_ETHUSD_20240821
["timestamp","ask_amount","ask_price","bid_price","bid_amount"]
[1724279988549,2.3286,2641.7,2641.3,3.78601]
[1724279988751,0.03503137,2641.6,2641.3,3.78601]
[1724279989264,2.3286,2641.7,2641.3,3.78601]
[1724279989591,0.0351181,2641.5,2641.3,3.78601]
[1724279989899,0.03496911,2641.6,2641.3,3.78601]
[1724279990096,2.3286,2641.7,2641.3,3.78601]
[1724279990318,2.3286,2641.7,2641.2,3.78606]
[1724279990319,2.3286,2641.7,2641.2,3.78607]
[1724279990599,0.03559103,2641.6,2641.2,4.439216]
[1724279990772,2.3286,2641.7,2641.3,3.786]
[1724279991312,0.03484551,2641.6,2641.4,3.78586]
[1724279991469,0.03484551,2641.6,2641.5,0.378586]
[1724279991659,2.80208279,2641.9,2641.5,0.378586]
[1724279991861,0.03473995,2641.6,2641.4,3.78586]
[1724279992086,2.80208279,2641.9,2641.4,3.78586]
[1724279992274,0.03489028,2641.5,2641.4,3.78586]
[1724279992612,0.39548279,2641.9,2641.7,3.78542]
[1724279992911,0.03516953,2641.5,2641.3,7.57188]
[1724279993054,2.4066,2641.8,2641.3,3.78593]
[1724279993250,0.03528515,2641.4,2641.3,7.57186]
[1724279993450,2.4066,2641.8,2641.3,7.57186]
[1724279993704,2.4066,2641.8,2641.3,8.6807406]
[1724279993938,0.03492433,2641.7,2641.3,4.8948006]
[1724279994497,2.4066,2641.8,2641.3,4.8948006]
[1724279994687,0.43049912,2641.6,2641.3,4.8948006]
[1724279994888,0.39551919,2641.6,2641.4,4.52380006]
[1724279998989,0.39551919,2641.6,2641.5,3.78572]
[1724280001193,2.402,2642.0,2641.5,3.78572]
[1724280001396,0.05646832,2641.9,2641.5,3.78572]
[1724280003509,0.05646832,2641.9,2641.6,3.78551]
[1724280003693,2.7724526,2642.5,2641.0,3.78642]
[1724280003694,2.402,2642.4,2641.7,7.003243]
[1724280003898,0.05620828,2641.8,2641.7,10.788683]
[1724280004226,2.402,2642.4,2641.8,3.78518]
[1724280004604,2.402,2642.4,2641.7,7.382443]
[1724280004605,0.03550842,2641.8,2641.7,7.003243]
[1724280004910,4.013,2642.4,2641.8,3.78526]
[1724280005059,4.4143,2642.4,2641.8,3.78526]
[1724280005268,4.4143,2642.4,2641.7,6.2462]
[1724280005877,4.4143,2642.4,2641.6,3.78548]
[1724280006088,2.402,2642.1,2641.6,3.78548]
[1724280007515,0.0211139,2642.0,2641.6,3.78548]
[1724280010427,0.0211139,2642.0,2641.4,7.57163]
[1724280010428,1.611,2641.8,2641.4,7.57163]
[1724280010568,2.2859,2641.9,2641.4,3.78579]
[1724280011026,0.39554688,2641.8,2641.4,3.78579]
[1724280011329,0.39554688,2641.8,2641.4,7.57154]
[1724280011330,0.41614021,2641.8,2641.4,7.57154]
[1724280011621,0.41614021,2641.8,2641.4,8.755464]
[1724280011978,2.2859,2641.9,2641.5,3.78572]
[1724280012378,0.05634577,2641.8,2641.5,3.78572]
[1724280013104,0.05634577,2641.8,2641.3,3.78587]
[1724280013322,0.05634577,2641.8,2641.4,4.430037]
[1724280013916,0.05634577,2641.8,2641.3,3.78587]
[1724280014535,1.611,2641.6,2641.1,3.78625]
[1724280014681,1.611,2641.6,2641.0,24.7269]
[1724280014682,1.611,2641.4,2641.0,19.44]
[1724280015071,2.3877,2641.3,2641.0,19.44]
[1724280015276,1.611,2641.2,2641.0,19.44]
[1724280016622,0.39557521,2641.2,2641.0,19.44]
[1724280018277,0.01922841,2641.1,2641.0,19.44]
[1724280018501,0.39557521,2641.2,2641.0,19.44]
[1724280018864,0.01928916,2641.1,2641.0,19.44]
[1724280019130,0.39557521,2641.2,2640.8,19.44]
[1724280019278,0.01923984,2641.1,2640.8,19.44]
[1724280019479,0.39557521,2641.2,2640.8,19.44]
[1724280021629,0.39557521,2641.2,2640.9,19.44]
[1724280021983,0.01917909,2641.1,2640.9,19.44]
[1724280022437,0.39557521,2641.2,2640.9,19.44]
[1724280022738,0.05525308,2641.1,2640.9,19.44]
[1724280023028,0.39557521,2641.2,2640.9,19.44]
[1724280023539,0.05528269,2641.1,2640.9,19.44]
[1724280023721,0.39557521,2641.2,2640.9,19.44]
[1724280024059,0.05501594,2641.0,2640.9,19.44]
[1724280024184,0.39557521,2641.2,2640.5,2.73273967]
[1724280024381,0.39557521,2641.2,2640.3,22.44]
[1724280024382,2.3917,2641.1,2640.3,5.3003]
[1724280024585,2.3917,2641.1,2640.1,6.52515967]
[1724280024586,2.44682806,2641.1,2640.1,6.52515967]
[1724280024890,2.4708,2641.0,2640.1,6.52515967]
[1724280025083,2.4708,2640.9,2640.1,7.21559564]
[1724280025519,0.01836734,2640.8,2640.1,7.21559564]
[1724280026133,0.01836734,2640.8,2640.1,7.59473564]
[1724280026301,0.01836734,2640.8,2640.2,3.78757]
[1724280026498,0.01836734,2640.8,2640.3,1.6286577]
[1724280027434,0.01836734,2640.8,2640.3,5.4160977]
[1724280027858,0.01836734,2640.8,2640.3,1.6286577]
[1724280028058,0.01836734,2640.8,2640.1,10.55729597]
[1724280028209,0.01836734,2640.8,2640.2,3.78753]
[1724280028651,0.03645389,2640.7,2640.2,3.78753]
[1724280029035,2.4708,2640.9,2640.2,3.78753]
[1724280029358,0.01813307,2640.8,2640.2,3.78753]
[1724280029553,0.01813307,2640.8,2640.3,1.0936366]
[1724280030758,0.01813307,2640.8,2640.6,3.787]
[1724280031162,2.3261,2641.1,2640.6,3.787]
[1724280031823,0.39557329,2641.0,2640.6,3.787]
[1724280032361,0.39557329,2641.0,2640.6,7.57392]
[1724280032517,0.39557329,2641.0,2640.7,4.544242]
[1724280032717,0.39557329,2641.0,2640.7,3.78685]
[1724280032918,0.01855895,2640.9,2640.7,3.78685]
[1724280033153,0.01855895,2640.9,2640.5,3.78701]
[1724280033351,0.01855895,2640.9,2640.6,3.78699]
[1724280034160,0.01855895,2640.9,2640.7,3.78687]
[1724280034361,0.01855895,2640.9,2640.8,0.757386]
[1724280034560,0.39557329,2641.0,2640.8,0.757386]
[1724280034858,0.01836317,2640.9,2640.8,0.757386]
[1724280035009,0.39557329,2641.0,2640.8,0.757386]
[1724280035212,0.39557329,2641.0,2640.9,3.78658]
[1724280035423,2.3261,2642.0,2641.3,2.3605]
[1724280035879,0.39558049,2641.5,2641.3,2.3605]
[1724280036022,2.3261,2642.0,2641.3,2.3605]
[1724280036224,0.39558801,2641.5,2641.3,6.14649]
[1724280036476,2.3261,2642.0,2641.3,7.139745]
[1724280036672,0.01969775,2641.4,2641.3,7.139745]
[1724280036939,2.3261,2642.0,2641.3,3.353755]
[1724280037174,0.01969775,2641.4,2641.2,3.78606]
[1724280037339,0.39558777,2641.5,2641.2,3.78606]
[1724280037540,2.55871,2642.0,2641.2,3.78606]
[1724280037739,0.01981923,2641.4,2641.2,3.78606]
[1724280037982,0.39558782,2641.5,2641.3,0.416526]
[1724280038126,2.3261,2642.0,2641.3,0.416526]
[1724280038325,0.01987997,2641.4,2641.3,0.416526]
[1724280038541,2.3261,2642.0,2641.3,0.416526]
[1724280038777,0.39558634,2641.5,2641.2,7.57213]
[1724280038924,0.39558634,2641.5,2641.2,3.78606]
[1724280039136,2.3261,2642.0,2641.2,7.57213]
[1724280039344,0.39558634,2641.5,2641.2,8.554543]
[1724280039551,2.3261,2642.0,2641.2,4.768473]
[1724280039754,0.39558737,2641.5,2641.2,8.554543]
[1724280040041,2.3261,2642.0,2641.3,3.786]
[1724280040286,0.39559436,2641.5,2641.3,3.786]
[1724280040495,0.39559436,2641.5,2641.3,0.8554473]
[1724280040656,2.3261,2642.0,2641.2,3.78606]
[1724280040858,0.079299,2641.4,2641.2,3.78606]
[1724280041057,2.3261,2642.0,2641.2,7.57214]
[1724280041256,0.07921741,2641.3,2641.2,7.57214]
[1724280041597,0.39561091,2641.5,2641.2,7.57214]
[1724280041784,0.39561091,2641.5,2641.2,8.554554]
[1724280043183,0.39561091,2641.5,2641.2,4.768474]
[1724280043484,0.39561091,2641.5,2641.2,0.982414]
[1724280043634,0.39561091,2641.5,2641.1,4.16549]
[1724280044285,0.39561091,2641.5,2641.1,3.78629]
[1724280044639,0.39561091,2641.5,2641.2,3.78615]
[1724280045137,0.39561091,2641.5,2641.1,0.3792]
[1724280045138,0.39561091,2641.5,2641.1,2.4734]
[1724280045492,0.39561091,2641.5,2641.2,3.78601]
[1724280046557,0.39561091,2641.5,2641.2,1.304575]
[1724280046775,0.39561091,2641.5,2641.3,3.78589]
[1724280046962,0.39561091,2641.5,2641.2,3.78612]
[1724280047413,0.39561091,2641.5,2641.3,3.78601]
[1724280047764,0.39561091,2641.5,2641.4,3.78587]
[1724280049177,0.39561091,2641.5,2641.4,6.28567]
[1724280049375,0.39561091,2641.5,2641.4,7.292827]
[1724280049583,0.39561091,2641.5,2641.4,11.078697]
[1724280049806,2.3359,2642.3,2641.8,3.78521]
[1724280050168,0.44889056,2642.2,2641.7,3.78543]
[1724280050468,0.39562657,2642.2,2641.7,3.78543]
[1724280051518,0.39562657,2642.2,2641.7,3.78536]
[1724280052327,0.39562657,2642.2,2641.5,3.7856]
[1724280052471,2.3182,2642.1,2641.5,3.7856]
[1724280052872,2.3182,2642.1,2641.5,7.57125]
[1724280053133,0.05389572,2642.0,2641.5,3.7856]
[1724280053289,0.07491244,2642.0,2641.5,3.7856]
[1724280054784,0.07491244,2642.0,2641.5,7.57125]
[1724280054984,0.07491244,2642.0,2641.5,3.7856]
[1724280055185,0.07491244,2642.0,2641.6,3.78557]
[1724280056131,0.07491244,2642.0,2641.4,5.4998]
[1724280056270,0.35378634,2642.0,2641.4,6.78579]
[1724280056821,0.35378634,2642.0,2641.2,7.5721]
[1724280057127,0.35378634,2642.0,2640.9,3.78654]
[1724280057128,2.2647,2641.9,2641.0,6.78635]
[1724280057289,2.2647,2641.9,2641.0,3.78635]
[1724280057492,2.2647,2641.7,2640.8,23.22665]
[1724280058015,2.2647,2641.5,2640.8,23.22665]
[1724280058167,0.22847362,2641.4,2640.8,23.22665]
[1724280058518,0.0544242,2641.3,2640.8,7.57329]
[1724280058687,0.0544242,2641.3,2640.8,3.78664]
[1724280058891,0.0544242,2641.3,2640.7,3.78686]
[1724280059534,0.0544242,2641.3,2640.8,3.78669]
[1724280060527,0.01941995,2641.2,2640.8,3.78669]
[1724280060693,2.2647,2641.5,2640.8,7.57334]
[1724280060889,2.49117,2641.5,2640.8,3.78665]
[1724280061201,2.2647,2641.5,2641.1,3.78628]
[1724280062836,2.2647,2641.5,2640.9,6.08607]
[1724280062837,2.2647,2641.5,2640.9,9.87252]
[1724280063130,2.2647,2641.5,2640.9,6.08595]
[1724280063301,2.2647,2641.5,2640.9,9.87246]
[1724280063639,2.2647,2641.5,2640.9,6.08595]
[1724280063854,2.2647,2641.5,2640.9,6.694545]
[1724280064345,0.01981923,2641.4,2640.9,6.694545]
[1724280064837,0.01981923,2641.4,2641.0,3.78639]
[1724280065435,0.39567612,2641.3,2641.0,3.78639]
[1724280065976,0.01905546,2641.2,2640.9,2.908095]
[1724280066155,0.01905546,2641.2,2640.9,2.2995]
[1724280066355,0.39567612,2641.3,2640.9,2.2995]
[1724280066575,0.0735139,2641.1,2640.9,2.2995]
[1724280066871,0.39567612,2641.3,2640.7,3.78677]
[1724280067036,0.07335595,2641.0,2640.7,3.78677]
[1724280067566,2.3636,2641.2,2640.6,6.2315923]
[1724280067778,0.07330362,2640.9,2640.6,7.57138153]
[1724280067944,2.3636,2641.2,2640.6,7.57138153]
[1724280068269,0.07348559,2641.1,2640.6,6.2315923]
[1724280068564,2.3636,2641.2,2640.6,6.2315923]
[1724280068722,0.07333027,2641.1,2640.6,6.2315923]
[1724280068919,2.3636,2641.2,2640.6,6.2315923]
[1724280069219,0.07333027,2641.1,2640.6,6.2315923]
[1724280069369,0.07333027,2641.1,2640.6,7.57138153]
[1724280069578,2.3636,2641.2,2640.6,7.57138153]
[1724280069959,0.05423039,2641.1,2640.6,7.57138153]
[1724280070129,2.3636,2641.2,2640.7,3.78686]
[1724280070330,0.05419892,2641.1,2640.8,3.78672]
[1724280070539,2.3636,2641.2,2640.7,7.57365]
[1724280070796,2.3636,2641.2,2640.8,3.7867]
[1724280071091,0.05419643,2641.1,2640.8,3.7867]
[1724280071293,0.39567612,2641.3,2640.8,3.7867]
[1724280071460,0.05408089,2641.2,2640.9,3.78657]
[1724280071786,0.39567612,2641.3,2640.9,3.78649]
[1724280071938,0.05442032,2641.1,2640.6,1.73537153]
[1724280072144,0.39567612,2641.3,2641.1,3.78623]
[1724280072762,0.05433122,2641.2,2641.1,3.78623]
[1724280073008,0.39567612,2641.3,2641.1,3.78623]
[1724280073293,0.05429975,2641.2,2641.1,3.78623]
[1724280073450,0.39567612,2641.3,2641.1,3.78623]
[1724280073994,0.39567612,2641.3,2641.2,3.78615]
[1724280075597,0.44969939,2641.3,2641.2,3.78615]
[1724280075797,0.44969939,2641.3,2641.2,4.778768]
[1724280076109,0.39567612,2641.3,2641.2,4.778768]
[1724280076403,0.39567612,2641.3,2641.2,8.564918]
[1724280076784,0.39567612,2641.3,2641.2,4.778768]
[1724280076983,0.39567612,2641.3,2641.2,3.78615]
[1724280078572,0.39567612,2641.3,2641.1,3.78626]
[1724280078774,0.39567612,2641.3,2641.0,7.57284]
[1724280079104,0.39567612,2641.3,2641.0,7.57278]
[1724280079820,0.39567612,2641.3,2641.1,3.78628]
[1724280080172,0.05443499,2641.2,2641.1,3.78628]
[1724280080572,0.39567612,2641.3,2641.1,3.78628]
[1724280081022,0.39567612,2641.3,2641.2,3.78615]
[1724280090540,0.39567612,2641.3,2641.1,7.5725]
[1724280090834,0.39567612,2641.3,2641.1,3.78621]
[1724280091539,0.39567612,2641.3,2641.1,7.57244]
[1724280091791,0.39567612,2641.3,2641.1,3.78621]
[1724280092118,0.39567612,2641.3,2641.1,7.57244]
[1724280093025,0.39567612,2641.3,2641.1,7.57243]
[1724280093344,0.39567612,2641.3,2641.1,3.78621]
[1724280093698,0.39567612,2641.3,2641.1,7.57243]
[1724280094151,0.39567612,2641.3,2641.1,3.78621]
[1724280095060,2.4484,2641.2,2640.6,0.3955823]
[1724280095199,2.4484,2641.2,2640.7,3.78687]
[1724280095403,0.05301116,2641.1,2640.6,0.0163823]
[1724280095863,2.4484,2641.2,2640.6,0.0163823]
[1724280096045,0.28440761,2641.1,2640.6,0.0163823]
[1724280096231,0.28440761,2641.1,2640.6,3.8033023]
[1724280096232,0.33693535,2641.1,2640.6,3.8033023]
[1724280096429,0.28440761,2641.1,2640.6,3.8033023]
[1724280096671,2.4484,2641.2,2640.7,3.78686]
[1724280096881,2.4484,2641.2,2640.7,3.78679]
[1724280097046,0.05249628,2641.1,2640.7,3.78679]
[1724280097586,2.4484,2641.2,2640.7,3.78679]
[1724280097791,0.39567612,2641.3,2641.0,3.78641]
[1724280097936,0.39567612,2641.3,2641.1,3.78621]
[1724280098138,0.39567612,2641.3,2640.9,3.78645]
[1724280098364,0.04984867,2641.2,2640.9,3.78645]
[1724280098568,0.39567612,2641.3,2640.9,3.78645]
[1724280098753,0.04983988,2641.2,2640.9,3.78645]
[1724280098948,0.39567612,2641.3,2640.9,3.78645]
[1724280099361,0.04983988,2641.2,2640.9,3.78645]
[1724280099521,0.39567612,2641.3,2641.1,3.7863]
[1724280099715,0.04987629,2641.2,2641.1,3.7863]
[1724280100009,0.39567612,2641.3,2641.1,3.7863]
[1724280100515,0.0497819,2641.2,2641.1,6.1261]
[1724280100718,0.39567612,2641.3,2641.2,3.78615]
[1724280101016,0.44537034,2641.3,2641.2,3.78615]
[1724280103122,0.44537034,2641.3,2641.1,6.1261]
[1724280103304,0.39567612,2641.3,2641.1,6.1261]
[1724280104168,0.39567612,2641.3,2641.1,3.7863]
[1724280104818,0.39567612,2641.3,2641.0,7.57279]
[1724280105118,0.39567612,2641.3,2641.0,3.78636]
[1724280105412,0.04975044,2641.2,2641.0,7.57272]
[1724280105774,0.39567612,2641.3,2641.0,3.78636]
[1724280106024,0.04971898,2641.2,2641.0,3.78636]
[1724280106222,0.04971898,2641.2,2641.0,7.57271]
[1724280106369,0.39567612,2641.3,2641.0,7.57271]
[1724280106721,0.04993922,2641.2,2641.0,3.78635]
[1724280106966,0.39567612,2641.3,2641.0,3.78635]
[1724280107267,0.04990776,2641.2,2641.0,7.57271]
[1724280107435,0.04990776,2641.2,2641.0,3.78635]
[1724280107762,0.39567612,2641.3,2641.0,3.78635]
[1724280107968,0.04993922,2641.2,2641.0,3.78635]
[1724280108178,0.39567612,2641.3,2641.0,3.78635]
[1724280108361,0.04987629,2641.2,2641.0,3.78635]
[1724280108566,0.39567612,2641.3,2641.0,3.78635]
[1724280108770,0.04987629,2641.2,2641.0,3.78635]
[1724280109088,0.39567612,2641.3,2641.0,3.78635]
[1724280109467,0.04984483,2641.2,2641.0,7.57271]
[1724280109636,0.04984483,2641.2,2641.0,8.563961]
[1724280109836,0.39567612,2641.3,2641.0,8.563961]
[1724280110036,0.39567612,2641.3,2641.0,4.777601]
[1724280110270,0.04981336,2641.2,2641.0,4.777601]
[1724280110533,0.39567612,2641.3,2641.0,4.777601]
[1724280110765,0.04975044,2641.2,2641.0,4.777601]
[1724280110925,0.39567612,2641.3,2641.0,4.777601]
[1724280111132,0.04975044,2641.2,2641.0,4.777601]
[1724280111331,0.39567612,2641.3,2641.0,4.777601]
[1724280111580,0.04997069,2641.2,2641.0,4.777601]
[1724280111787,0.39567612,2641.3,2641.0,4.777601]
[1724280112084,0.04993922,2641.2,2641.0,4.777601]
[1724280112577,0.04999544,2641.1,2641.0,3.78635]
[1724280112793,0.39567612,2641.3,2641.0,3.78635]
[1724280112932,0.04999544,2641.1,2640.7,9.8485]
[1724280113134,4.34107612,2641.3,2640.8,3.0]
[1724280113360,0.05011943,2641.0,2640.8,3.0]
[1724280113561,0.43410761,2641.2,2640.7,13.63537]
[1724280113562,2.3182,2641.2,2640.7,7.49]
[1724280113769,0.0502386,2640.9,2640.7,7.49]
[1724280114083,2.00756165,2641.1,2640.7,7.49]
[1724280114227,0.05038333,2640.8,2640.6,0.0163823]
[1724280114429,0.39302,2641.0,2640.6,19.4563823]
[1724280114634,0.05043958,2640.7,2640.6,19.4563823]
[1724280114836,2.00756165,2641.1,2640.6,19.4563823]
[1724280115078,2.44013782,2641.1,2640.6,19.4563823]
[1724280115379,0.05008206,2641.0,2640.6,19.4563823]
[1724280116651,0.05008206,2641.0,2640.6,23.2433723]
[1724280117042,0.39556165,2641.1,2640.6,23.2433723]
[1724280117585,0.39556165,2641.1,2640.7,7.95284]
[1724280117791,0.39556165,2641.1,2640.8,2.90212223]
[1724280117952,0.39556165,2641.1,2640.8,5.19222223]
[1724280118287,0.39556165,2641.1,2640.9,3.7865]
[1724280119592,0.39556165,2641.1,2640.8,5.19222223]
[1724280119944,0.39556165,2641.1,2640.8,8.97891223]
[1724280120792,0.39556165,2641.1,2640.7,19.44]
[1724280121096,2.30384483,2641.0,2640.7,19.44]
[1724280121744,0.39556165,2641.1,2640.7,19.44]
[1724280122528,0.39556165,2641.1,2640.8,3.78672]
[1724280122684,0.39556165,2641.1,2640.8,6.27504]
[1724280122883,0.39556165,2641.1,2640.9,6.08464702]
[1724280123115,0.39556165,2641.1,2640.9,2.29808702]
[1724280123284,0.39556165,2641.1,2640.8,6.27504]
[1724280124112,0.39556165,2641.1,2640.8,10.06168]
[1724280124435,0.39556165,2641.1,2640.8,6.27504]
[1724280124785,0.39556165,2641.1,2640.8,10.06168]
[1724280124997,0.39556165,2641.1,2640.8,10.0617]
[1724280125587,0.39556165,2641.1,2640.9,6.73675]
[1724280125782,0.39556165,2641.1,2640.9,6.73674]
[1724280126136,0.39556165,2641.1,2640.9,2.95017]
[1724280126423,0.39556165,2641.1,2640.7,23.22686]
[1724280126642,1.612,2640.9,2640.7,19.44]
[1724280127005,0.05038234,2640.8,2640.7,19.44]
[1724280127204,0.39556165,2641.1,2640.7,23.22687]
[1724280127621,0.39556165,2641.1,2640.7,19.44]
[1724280130042,0.39556165,2641.1,2640.8,3.78669]
[1724280130242,0.39556165,2641.1,2640.8,6.33976723]
[1724280131057,0.39556165,2641.1,2640.8,2.55307723]
[1724280131432,0.04973586,2641.0,2640.8,2.55307723]
[1724280131618,0.06975774,2641.0,2640.8,2.55307723]
[1724280133288,0.06975774,2641.0,2640.7,25.51443]
[1724280133642,0.39556165,2641.1,2640.7,25.51443]
[1724280134848,2.3597,2641.0,2640.7,19.44]
[1724280135620,0.06920352,2640.9,2640.7,19.44]
[1724280135821,2.3597,2641.0,2640.7,19.44]
[1724280136022,2.04872616,2640.9,2640.7,19.44]
[1724280136261,2.04872616,2640.9,2640.6,0.0163823]
[1724280136262,2.2953,2640.8,2640.6,0.0163823]
[1724280136416,1.612,2640.7,2640.6,0.0163823]
[1724280137128,8.08995043,2640.7,2640.6,0.0163823]
[1724280137298,12.42682043,2640.7,2640.6,0.0163823]
[1724280137456,8.63995043,2640.7,2640.6,0.0163823]
[1724280138483,7.02795043,2640.7,2640.6,0.0163823]
[1724280138899,7.04605796,2640.7,2640.6,0.0163823]
[1724280139982,13.83292796,2640.7,2640.6,0.0163823]
[1724280140190,16.61289123,2640.7,2640.6,0.0163823]
[1724280140538,13.83292796,2640.7,2640.6,0.0163823]
[1724280140949,16.61289123,2640.7,2640.6,0.0163823]
[1724280141263,13.83292796,2640.7,2640.6,0.0163823]
[1724280141751,16.61289123,2640.7,2640.6,0.0163823]
[1724280142110,20.39976123,2640.7,2640.6,0.0163823]
[1724280142302,2.3849,2639.9,2639.2,19.44]
[1724280142812,0.01666741,2639.8,2639.2,19.44]
[1724280148663,0.05105441,2639.7,2639.2,19.44]
[1724280149865,0.01521077,2639.6,2639.2,19.44]
[1724280152349,0.39573823,2639.5,2638.9,6.15067]
[1724280152519,0.41053628,2639.5,2638.9,7.144701]
[1724280152737,0.41053628,2639.5,2638.9,10.934081]
[1724280152938,0.41053628,2639.5,2638.9,7.144701]
[1724280153127,2.70003628,2639.5,2638.9,3.355331]
[1724280153328,2.70003628,2639.5,2638.8,3.78958]
[1724280153567,2.70003628,2639.5,2638.7,6.12523]
[1724280154066,0.41053628,2639.5,2638.8,2.3355]
[1724280154266,0.41053628,2639.5,2639.2,2.3355]
[1724280154834,0.41053628,2639.5,2639.2,6.1245]
[1724280155466,0.41053628,2639.5,2639.2,2.3355]
[1724280156534,0.41053628,2639.5,2639.2,6.12452]
[1724280158074,0.38043728,2639.5,2638.8,6.4749]
[1724280158277,0.38043728,2639.5,2638.9,0.64749]
[1724280158576,0.38043728,2639.5,2638.9,4.43692]
[1724280158774,0.38043728,2639.5,2638.9,4.43683]
[1724280159137,0.38043728,2639.5,2639.0,3.78928]
[1724280159332,0.38043728,2639.5,2639.0,4.842511]
[1724280163703,0.05122811,2639.4,2639.0,4.842511]
[1724280163992,0.01467664,2639.3,2639.0,4.842511]
[1724280166597,0.01467664,2639.3,2639.1,3.78915]
[1724280166950,0.36563923,2639.5,2639.1,3.78915]
[1724280167656,0.01490701,2639.4,2639.1,3.78915]
[1724280167871,0.01490701,2639.4,2639.1,4.7170711]
[1724280168271,0.01490701,2639.4,2639.1,3.78915]
[1724280168467,0.01490701,2639.4,2639.0,3.78929]
[1724280168672,0.01490701,2639.4,2639.1,3.78914]
[1724280170869,0.01490701,2639.4,2639.3,3.78888]
[1724280171070,0.01490701,2639.4,2639.3,4.167768]
[1724280171270,0.01490701,2639.4,2639.3,14.173628]
[1724280171471,0.01490701,2639.4,2639.3,10.763948]
[1724280171691,1.615,2640.0,2639.6,3.78841]
[1724280172004,1.615,2640.0,2639.6,3.78838]
[1724280172174,0.06671747,2639.9,2639.6,3.78838]
[1724280172508,0.06671747,2639.9,2639.6,4.584001]
[1724280174296,0.06671747,2639.9,2639.6,8.372371]
[1724280174601,0.06671747,2639.9,2639.7,2.4047]
[1724280174812,0.06671747,2639.9,2639.8,14.14838]
[1724280174967,0.06671747,2639.9,2639.8,14.78294403]
[1724280175171,1.615,2640.7,2640.3,2.4047]
[1724280175368,1.615,2640.5,2639.9,6.27616]
[1724280175569,0.05599757,2640.4,2639.9,6.27616]
[1724280175981,1.615,2640.3,2639.9,6.27616]
[1724280176185,1.615,2640.3,2639.7,2.4882]
[1724280176510,0.05623604,2640.2,2639.7,5.8677621]
[1724280176871,0.05623604,2640.2,2639.7,9.6559721]
[1724280177071,0.05623604,2640.2,2639.8,3.78815]
[1724280177371,1.615,2640.3,2639.8,3.78815]
[1724280177710,0.05617308,2640.2,2639.8,3.78815]
[1724280177911,0.05617308,2640.2,2639.8,5.30843487]
[1724280178099,1.615,2640.3,2639.8,5.30843487]
[1724280178410,0.05626085,2640.1,2639.9,3.788]
[1724280178583,2.3892,2640.7,2640.0,3.78787]
[1724280178584,1.615,2640.5,2640.0,3.78787]
[1724280178789,0.05590314,2640.4,2640.0,4.75084555]
[1724280178999,0.05590314,2640.4,2640.0,4.75076555]
[1724280179371,4.0042,2640.7,2640.0,5.91818659]
[1724280179570,0.05595942,2640.3,2640.0,4.75076555]
[1724280179798,0.55,2640.6,2640.0,4.75076555]
[1724280180112,0.05577804,2640.5,2640.2,3.78757]
[1724280180297,0.05577804,2640.5,2640.3,4.26248456]
[1724280180480,3.8985,2640.9,2640.2,6.23082]
[1724280180481,1.615,2640.7,2640.2,6.23082]
[1724280180681,0.0561176,2640.4,2640.2,3.78752]
[1724280180913,1.615,2640.7,2640.1,7.57527]
[1724280181072,1.615,2640.7,2640.1,3.78763]
[1724280181280,0.05584767,2640.6,2640.1,3.78763]
[1724280181675,1.615,2640.5,2640.1,3.78763]
[1724280181977,3.8985,2640.5,2640.1,3.78763]
[1724280182190,0.05602317,2640.4,2640.1,3.78763]
[1724280182926,0.05602317,2640.4,2639.9,6.23122]
[1724280183132,0.05602317,2640.4,2639.9,8.01885225]
[1724280183327,3.8985,2640.5,2640.0,3.78783]
[1724280183735,0.05553086,2640.4,2640.0,3.78783]
[1724280184228,0.05553086,2640.4,2640.0,7.57562]
[1724280184432,3.8985,2640.5,2640.0,7.57558]
[1724280184794,0.0557512,2640.4,2640.0,7.57558]
[1724280184992,0.0557512,2640.4,2640.0,3.78779]
[1724280185234,3.8985,2640.5,2640.0,3.78779]
[1724280185695,0.05571972,2640.4,2640.0,3.78779]
[1724280186090,3.8985,2640.5,2640.1,3.78773]
[1724280186495,0.05559969,2640.4,2640.1,3.78773]
[1724280187538,0.05559969,2640.4,2640.0,3.78779]
[1724280187902,1.615,2640.1,2639.9,0.96171829]
[1724280188263,4.0544,2640.1,2639.3,3.78878]
[1724280188557,1.615,2639.7,2639.3,3.78878]
[1724280189103,1.615,2639.9,2639.3,3.78878]
[1724280189324,2.4086,2639.8,2639.3,3.78878]
[1724280189556,1.615,2639.7,2639.3,3.78878]
[1724280190306,2.01736,2639.7,2639.0,6.09447]
[1724280190748,0.05420544,2639.6,2639.2,3.78901]
[1724280190906,1.615,2639.7,2639.2,3.78901]
[1724280193310,1.615,2639.3,2639.0,6.09447]
[1724280193515,1.615,2639.3,2638.8,3.7895]
[1724280193751,1.615,2638.9,2638.7,7.49]
[1724280194465,1.615,2639.1,2638.7,7.49]
[1724280194812,1.615,2638.9,2638.7,7.49]
[1724280195246,0.05205737,2638.8,2638.7,7.49]
[1724280195468,2.99065737,2638.8,2638.0,3.79066]
[1724280195609,1.615,2638.6,2638.0,3.79066]
[1724280195956,1.615,2638.6,2638.0,6.492822]
[1724280196187,1.615,2638.6,2637.7,9.8845]
[1724280196188,1.615,2638.4,2637.7,2.3945]
[1724280196460,2.3235,2638.3,2637.7,3.79116]
[1724280196676,0.05280791,2638.2,2637.7,3.79116]
[1724280196967,2.3235,2638.7,2637.8,4.170066]
[1724280197177,2.8735,2638.7,2637.9,3.79075]
[1724280197330,2.3235,2638.4,2637.7,3.79113]
[1724280197828,0.05229956,2638.3,2637.7,3.79113]
[1724280199072,0.05229956,2638.3,2637.5,6.273]
[1724280199073,0.05229956,2638.3,2637.8,3.79094]
[1724280199230,2.3235,2638.7,2637.8,4.170034]
[1724280199432,0.60196579,2638.6,2637.8,4.170034]
[1724280199743,0.60196579,2638.6,2637.8,7.960954]
[1724280199945,0.60196579,2638.6,2637.8,4.170014]
[1724280200332,0.60196579,2638.6,2637.8,3.79092]
[1724280201056,0.60196579,2638.6,2637.8,7.58184]
[1724280201426,0.60196579,2638.6,2637.9,3.79088]
[1724280202138,0.60196579,2638.6,2637.8,3.79092]
[1724280202520,0.60196579,2638.6,2638.3,3.79022]
[1724280202521,0.05196579,2638.6,2638.3,3.79022]